[Event "Titled Tuesday Blitz October 31 Late 2023"]
[White "Kashefi, Amir Hosein"]
[Black "Kamsky, Gata"]
[WhiteFideId "12557935"]
[BlackFideId "2000024"]
[WhiteElo "2599"]
[BlackElo "2813"]
[Result "0-1"]
[Round "11"]
[TimeControl "180+1"]
[Date "2023.10.31"]
[WhiteClock "0:00:00"]
[BlackClock "0:00:29"]
[Board "27"]

1. Nf3 {[%clk 0:02:59]}  Nf6 {[%clk 0:02:48]} 2. g3 {[%clk 0:02:59]}  d5 {[%clk 0:02:48]} 3. Bg2 {[%clk 0:03:00]}  c6 {[%clk 0:02:48]} 4. O-O {[%clk 0:03:01]}  Bf5 {[%clk 0:02:48]} 5. b3 {[%clk 0:02:58]}  e6 {[%clk 0:02:48]} 6. Bb2 {[%clk 0:02:58]}  h6 {[%clk 0:02:48]} 7. d3 {[%clk 0:02:59]}  Bh7 {[%clk 0:02:46]} 8. Nbd2 {[%clk 0:02:49]}  a5 {[%clk 0:02:45]} 9. a3 {[%clk 0:02:48]}  Be7 {[%clk 0:02:45]} 10. c4 {[%clk 0:02:45]}  O-O {[%clk 0:02:45]} 11. Qc2 {[%clk 0:02:45]}  Nbd7 {[%clk 0:02:45]} 12. Rfe1 {[%clk 0:02:44]}  Bc5 {[%clk 0:02:40]} 13. e3 {[%clk 0:02:41]}  Re8 {[%clk 0:02:36]} 14. Rad1 {[%clk 0:02:41]}  Qe7 {[%clk 0:02:33]} 15. Nb1 {[%clk 0:02:30]}  b5 {[%clk 0:02:23]} 16. Qc1 {[%clk 0:02:17]}  Rec8 {[%clk 0:02:18]} 17. Bxf6 {[%clk 0:02:11]}  Qxf6 {[%clk 0:02:12]} 18. d4 {[%clk 0:02:11]}  Bf8 {[%clk 0:02:10]} 19. c5 {[%clk 0:02:11]}  g5 {[%clk 0:02:01]} 20. h4 {[%clk 0:01:57]}  g4 {[%clk 0:01:56]} 21. Nh2 {[%clk 0:01:52]}  h5 {[%clk 0:01:56]} 22. Bf1 {[%clk 0:01:52]}  e5 {[%clk 0:01:52]} 23. Bd3 {[%clk 0:01:52]}  Bxd3 {[%clk 0:01:50]} 24. Rxd3 {[%clk 0:01:52]}  Qg6 {[%clk 0:01:46]} 25. Rd2 {[%clk 0:01:48]}  Bg7 {[%clk 0:01:42]} 26. Nf1 {[%clk 0:01:40]}  Re8 {[%clk 0:01:41]} 27. Rdd1 {[%clk 0:01:33]}  f5 {[%clk 0:01:41]} 28. Nc3 {[%clk 0:01:23]}  Re7 {[%clk 0:01:36]} 29. dxe5 {[%clk 0:01:22]}  Nxe5 {[%clk 0:01:33]} 30. Nh2 {[%clk 0:01:19]}  Nf3+ {[%clk 0:01:24]} 31. Nxf3 {[%clk 0:01:16]}  gxf3 {[%clk 0:01:25]} 32. Qd2 {[%clk 0:00:50]}  Kh8 {[%clk 0:01:16]} 33. Nxd5 {[%clk 0:00:39]}  cxd5 {[%clk 0:01:14]} 34. Qxd5 {[%clk 0:00:38]}  Rc8 {[%clk 0:01:09]} 35. Qxf3 {[%clk 0:00:36]}  Rxc5 {[%clk 0:01:08]} 36. Qa8+ {[%clk 0:00:36]}  Kh7 {[%clk 0:01:07]} 37. Qxa5 {[%clk 0:00:36]}  Bc3 {[%clk 0:01:00]} 38. Qd8 {[%clk 0:00:36]}  Rg7 {[%clk 0:00:59]} 39. Re2 {[%clk 0:00:33]}  Bf6 {[%clk 0:00:53]} 40. Qd6 {[%clk 0:00:30]}  Rc3 {[%clk 0:00:52]} 41. a4 {[%clk 0:00:16]}  Rxb3 {[%clk 0:00:46]} 42. axb5 {[%clk 0:00:16]}  Rxb5 {[%clk 0:00:46]} 43. Rc2 {[%clk 0:00:14]}  f4 {[%clk 0:00:44]} 44. Qd3 {[%clk 0:00:06]}  Qxd3 {[%clk 0:00:42]} 45. Rxd3 {[%clk 0:00:05]}  fxg3 {[%clk 0:00:42]} 46. f4 {[%clk 0:00:01]}  Bxh4 {[%clk 0:00:41]} 47. Kg2 {[%clk 0:00:02]}  Bf6 {[%clk 0:00:38]} 48. Rd6 {[%clk 0:00:02]}  Be7 {[%clk 0:00:32]} 49. Re6 {[%clk 0:00:02]}  h4 {[%clk 0:00:32]} 50. e4 {[%clk 0:00:02]}  h3+ {[%clk 0:00:28]} 51. Kxh3 {[%clk 0:00:02]}  Rh5+ {[%clk 0:00:28]} 52. Kg2 {[%clk 0:00:01]}  Rh2+ {[%clk 0:00:29]} 53. Kf3 {[%clk 0:00:01]}  Rxc2 {[%clk 0:00:29]} 54. f5 {[%clk 0:00:00]}  Rf2+ {[%clk 0:00:29]} 0-1


[Site "https://www.chess.com"]

[Event "Titled Tuesday Blitz October 31 Late 2023"]
[White "Annaberdiyev, Meylis"]
[Black "Likvidator228"]
[WhiteFideId "14000563"]
[WhiteElo "2697"]
[BlackElo "2568"]
[Result "1-0"]
[Round "11"]
[TimeControl "180+1"]
[Date "2023.10.31"]
[WhiteClock "0:00:27"]
[BlackClock "0:00:20"]
[Board "29"]

1. e4 {[%clk 0:03:00]}  c5 {[%clk 0:02:56]} 2. Nf3 {[%clk 0:02:58]}  g6 {[%clk 0:02:55]} 3. c3 {[%clk 0:02:57]}  d5 {[%clk 0:02:55]} 4. exd5 {[%clk 0:02:56]}  Qxd5 {[%clk 0:02:55]} 5. d4 {[%clk 0:02:57]}  Bg7 {[%clk 0:02:56]} 6. Na3 {[%clk 0:02:53]}  Nf6 {[%clk 0:02:44]} 7. Nb5 {[%clk 0:02:43]}  Na6 {[%clk 0:02:41]} 8. Be3 {[%clk 0:02:08]}  cxd4 {[%clk 0:02:38]} 9. Qxd4 {[%clk 0:02:03]}  O-O {[%clk 0:02:20]} 10. Qxd5 {[%clk 0:01:42]}  Nxd5 {[%clk 0:02:20]} 11. Bd2 {[%clk 0:01:33]}  Bg4 {[%clk 0:02:14]} 12. Be2 {[%clk 0:01:28]}  Nc5 {[%clk 0:02:04]} 13. h3 {[%clk 0:01:13]}  Bxf3 {[%clk 0:01:57]} 14. Bxf3 {[%clk 0:01:13]}  Nd3+ {[%clk 0:01:58]} 15. Ke2 {[%clk 0:01:12]}  N5f4+ {[%clk 0:01:59]} 16. Kf1 {[%clk 0:01:10]}  a6 {[%clk 0:01:46]} 17. Na3 {[%clk 0:01:02]}  g5 {[%clk 0:01:42]} 18. h4 {[%clk 0:01:00]}  Ne5 {[%clk 0:01:28]} 19. hxg5 {[%clk 0:00:57]}  Nxf3 {[%clk 0:01:26]} 20. gxf3 {[%clk 0:00:58]}  Ne6 {[%clk 0:01:18]} 21. Be3 {[%clk 0:00:56]}  b5 {[%clk 0:01:16]} 22. Nc2 {[%clk 0:00:55]}  Rfd8 {[%clk 0:01:14]} 23. f4 {[%clk 0:00:55]}  Rd5 {[%clk 0:01:14]} 24. Ke2 {[%clk 0:00:53]}  f6 {[%clk 0:01:05]} 25. Rad1 {[%clk 0:00:47]}  Rad8 {[%clk 0:01:04]} 26. Rxd5 {[%clk 0:00:46]}  Rxd5 {[%clk 0:01:04]} 27. Nb4 {[%clk 0:00:47]}  Rd6 {[%clk 0:01:01]} 28. Rd1 {[%clk 0:00:46]}  Rxd1 {[%clk 0:00:52]} 29. Kxd1 {[%clk 0:00:47]}  a5 {[%clk 0:00:51]} 30. Nc6 {[%clk 0:00:47]}  a4 {[%clk 0:00:45]} 31. Nxe7+ {[%clk 0:00:46]}  Kf7 {[%clk 0:00:45]} 32. Nf5 {[%clk 0:00:45]}  Bf8 {[%clk 0:00:43]} 33. Ke2 {[%clk 0:00:38]}  Kg6 {[%clk 0:00:43]} 34. Ng3 {[%clk 0:00:36]}  fxg5 {[%clk 0:00:43]} 35. f5+ {[%clk 0:00:36]}  Kf6 {[%clk 0:00:33]} 36. fxe6 {[%clk 0:00:36]}  g4 {[%clk 0:00:32]} 37. Ne4+ {[%clk 0:00:31]}  Kxe6 {[%clk 0:00:24]} 38. Ng5+ {[%clk 0:00:30]}  Kd5 {[%clk 0:00:25]} 39. Nxh7 {[%clk 0:00:28]}  Be7 {[%clk 0:00:25]} 40. Kd3 {[%clk 0:00:28]}  b4 {[%clk 0:00:24]} 41. c4+ {[%clk 0:00:27]}  Ke5 {[%clk 0:00:23]} 42. b3 {[%clk 0:00:28]}  axb3 {[%clk 0:00:23]} 43. axb3 {[%clk 0:00:28]}  Kf5 {[%clk 0:00:23]} 44. c5 {[%clk 0:00:25]}  Kg6 {[%clk 0:00:23]} 45. Ng5 {[%clk 0:00:26]}  Bxc5 {[%clk 0:00:21]} 46. Bxc5 {[%clk 0:00:26]}  Kxg5 {[%clk 0:00:22]} 47. Bxb4 {[%clk 0:00:26]}  Kf4 {[%clk 0:00:22]} 48. Bd6+ {[%clk 0:00:26]}  Kf3 {[%clk 0:00:20]} 49. Bg3 {[%clk 0:00:27]} 1-0


[Site "https://www.chess.com"]

[Event "Titled Tuesday Blitz October 31 Late 2023"]
[White "Jaskolka, Tomasz"]
[Black "Burke, Carol Ann"]
[WhiteFideId "1170791"]
[BlackFideId "11104643"]
[WhiteElo "2594"]
[BlackElo "2693"]
[Result "0-1"]
[Round "11"]
[TimeControl "180+1"]
[Date "2023.10.31"]
[WhiteClock "0:00:02"]
[BlackClock "0:00:09"]
[Board "30"]

1. e4 {[%clk 0:03:00]}  c5 {[%clk 0:02:58]} 2. Nf3 {[%clk 0:03:01]}  e6 {[%clk 0:02:58]} 3. b4 {[%clk 0:03:00]}  cxb4 {[%clk 0:02:54]} 4. d4 {[%clk 0:02:59]}  Nf6 {[%clk 0:02:51]} 5. Bd3 {[%clk 0:02:58]}  d6 {[%clk 0:02:42]} 6. a3 {[%clk 0:02:54]}  Bd7 {[%clk 0:02:36]} 7. axb4 {[%clk 0:02:51]}  Bc6 {[%clk 0:02:28]} 8. Qe2 {[%clk 0:02:47]}  d5 {[%clk 0:02:19]} 9. e5 {[%clk 0:02:43]}  Ne4 {[%clk 0:02:15]} 10. c3 {[%clk 0:02:27]}  Be7 {[%clk 0:02:05]} 11. O-O {[%clk 0:02:26]}  O-O {[%clk 0:02:04]} 12. b5 {[%clk 0:02:14]}  Bd7 {[%clk 0:01:38]} 13. Bxe4 {[%clk 0:02:14]}  dxe4 {[%clk 0:01:38]} 14. Qxe4 {[%clk 0:02:15]}  Bxb5 {[%clk 0:01:35]} 15. Qxb7 {[%clk 0:02:12]}  Bc6 {[%clk 0:01:29]} 16. Qb3 {[%clk 0:02:03]}  Bxf3 {[%clk 0:01:24]} 17. gxf3 {[%clk 0:02:03]}  Nd7 {[%clk 0:01:23]} 18. Ba3 {[%clk 0:01:52]}  Bxa3 {[%clk 0:01:09]} 19. Nxa3 {[%clk 0:01:47]}  Qg5+ {[%clk 0:01:09]} 20. Kh1 {[%clk 0:01:47]}  Qf4 {[%clk 0:01:08]} 21. Qd1 {[%clk 0:01:47]}  f6 {[%clk 0:00:53]} 22. Nc4 {[%clk 0:00:54]}  fxe5 {[%clk 0:00:49]} 23. Nxe5 {[%clk 0:00:43]}  Nxe5 {[%clk 0:00:44]} 24. dxe5 {[%clk 0:00:44]}  Qxe5 {[%clk 0:00:29]} 25. Rg1 {[%clk 0:00:42]}  Qxc3 {[%clk 0:00:27]} 26. Rg3 {[%clk 0:00:42]}  a5 {[%clk 0:00:20]} 27. Rc1 {[%clk 0:00:41]}  Qf6 {[%clk 0:00:18]} 28. Rc7 {[%clk 0:00:38]}  Rf7 {[%clk 0:00:18]} 29. Rc6 {[%clk 0:00:24]}  a4 {[%clk 0:00:16]} 30. Qe2 {[%clk 0:00:24]}  Re7 {[%clk 0:00:13]} 31. Rc2 {[%clk 0:00:22]}  a3 {[%clk 0:00:13]} 32. Ra2 {[%clk 0:00:19]}  Rea7 {[%clk 0:00:13]} 33. Qe3 {[%clk 0:00:14]}  h6 {[%clk 0:00:11]} 34. Kg2 {[%clk 0:00:14]}  Qf5 {[%clk 0:00:09]} 35. Rg4 {[%clk 0:00:11]}  Qd5 {[%clk 0:00:08]} 36. Ra1 {[%clk 0:00:06]}  Kh8 {[%clk 0:00:08]} 37. Qc3 {[%clk 0:00:05]}  a2 {[%clk 0:00:06]} 38. h3 {[%clk 0:00:05]}  Qf5 {[%clk 0:00:06]} 39. Rg3 {[%clk 0:00:04]}  Qf6 {[%clk 0:00:07]} 40. Qxf6 {[%clk 0:00:04]}  gxf6 {[%clk 0:00:08]} 41. Rg6 {[%clk 0:00:04]}  Rb7 {[%clk 0:00:07]} 42. Rxf6 {[%clk 0:00:02]}  Rb1 {[%clk 0:00:07]} 43. Rxa2 {[%clk 0:00:02]}  Rxa2 {[%clk 0:00:07]} 44. Rxh6+ {[%clk 0:00:03]}  Kg7 {[%clk 0:00:08]} 45. Rxe6 {[%clk 0:00:04]}  Rbb2 {[%clk 0:00:08]} 46. Kg3 {[%clk 0:00:04]}  Rxf2 {[%clk 0:00:09]} 47. Re4 {[%clk 0:00:04]}  Rg2+ {[%clk 0:00:09]} 48. Kh4 {[%clk 0:00:05]}  Rg6 {[%clk 0:00:10]} 49. Rb4 {[%clk 0:00:04]}  Rag2 {[%clk 0:00:09]} 50. Rb7+ {[%clk 0:00:04]}  Kf6 {[%clk 0:00:09]} 51. Rb6+ {[%clk 0:00:05]}  Kf5 {[%clk 0:00:10]} 52. Rb5+ {[%clk 0:00:05]}  Kf4 {[%clk 0:00:10]} 53. Rb4+ {[%clk 0:00:06]}  Kxf3 {[%clk 0:00:10]} 54. Rb3+ {[%clk 0:00:06]}  Ke4 {[%clk 0:00:10]} 55. Rb4+ {[%clk 0:00:07]}  Kd5 {[%clk 0:00:11]} 56. Kh5 {[%clk 0:00:05]}  R2g5+ {[%clk 0:00:09]} 57. Kh4 {[%clk 0:00:05]}  Rg1 {[%clk 0:00:09]} 58. Kh5 {[%clk 0:00:05]}  Rg8 {[%clk 0:00:09]} 59. Rg4 {[%clk 0:00:01]}  R1xg4 {[%clk 0:00:08]} 60. hxg4 {[%clk 0:00:02]}  Ke6 {[%clk 0:00:09]} 61. g5 {[%clk 0:00:02]}  Kf7 {[%clk 0:00:09]} 62. Kh6 {[%clk 0:00:02]}  Rh8# {[%clk 0:00:09]} 0-1


[Site "https://www.chess.com"]

[Event "Titled Tuesday Blitz October 31 Late 2023"]
[White "Mendez Fortes, Eduardo Jesus"]
[Black "Toncheva, Nadya"]
[WhiteFideId "3502376"]
[BlackFideId "2924056"]
[WhiteElo "2668"]
[BlackElo "2543"]
[Result "0-1"]
[Round "11"]
[TimeControl "180+1"]
[Date "2023.10.31"]
[WhiteClock "0:00:10"]
[BlackClock "0:00:24"]
[Board "33"]

1. e4 {[%clk 0:02:59]}  c5 {[%clk 0:03:00]} 2. Nf3 {[%clk 0:02:54]}  Nc6 {[%clk 0:03:00]} 3. d4 {[%clk 0:02:53]}  cxd4 {[%clk 0:03:01]} 4. Nxd4 {[%clk 0:02:53]}  g6 {[%clk 0:03:02]} 5. c4 {[%clk 0:02:52]}  Bg7 {[%clk 0:03:02]} 6. Be3 {[%clk 0:02:53]}  Nf6 {[%clk 0:03:03]} 7. Nc3 {[%clk 0:02:52]}  O-O {[%clk 0:03:03]} 8. Be2 {[%clk 0:02:52]}  d6 {[%clk 0:03:04]} 9. O-O {[%clk 0:02:52]}  Bd7 {[%clk 0:03:04]} 10. Qd2 {[%clk 0:02:52]}  Nxd4 {[%clk 0:03:04]} 11. Bxd4 {[%clk 0:02:53]}  Bc6 {[%clk 0:03:04]} 12. f3 {[%clk 0:02:53]}  a5 {[%clk 0:03:04]} 13. b3 {[%clk 0:02:52]}  Nd7 {[%clk 0:03:03]} 14. Be3 {[%clk 0:02:52]}  Nc5 {[%clk 0:02:58]} 15. Rab1 {[%clk 0:02:52]}  Qb6 {[%clk 0:02:58]} 16. Rfc1 {[%clk 0:02:51]}  Rfc8 {[%clk 0:02:57]} 17. Bf1 {[%clk 0:02:51]}  h5 {[%clk 0:02:57]} 18. Rc2 {[%clk 0:02:51]}  Kh7 {[%clk 0:02:54]} 19. a3 {[%clk 0:02:49]}  Qd8 {[%clk 0:02:54]} 20. Ne2 {[%clk 0:02:40]}  Qh8 {[%clk 0:02:51]} 21. Nf4 {[%clk 0:02:35]}  a4 {[%clk 0:02:43]} 22. b4 {[%clk 0:02:32]}  Nb3 {[%clk 0:02:41]} 23. Qf2 {[%clk 0:02:29]}  Bd4 {[%clk 0:02:38]} 24. Rd1 {[%clk 0:02:24]}  Bxe3 {[%clk 0:02:32]} 25. Qxe3 {[%clk 0:02:25]}  Qf6 {[%clk 0:02:26]} 26. b5 {[%clk 0:02:19]}  e5 {[%clk 0:01:55]} 27. Nd3 {[%clk 0:01:59]}  Bxb5 {[%clk 0:01:50]} 28. Nb4 {[%clk 0:01:55]}  Bc6 {[%clk 0:01:49]} 29. g3 {[%clk 0:01:53]}  Nd4 {[%clk 0:01:48]} 30. Rc3 {[%clk 0:01:51]}  Qe7 {[%clk 0:01:34]} 31. Rcd3 {[%clk 0:01:33]}  Qf8 {[%clk 0:01:24]} 32. Rxd4 {[%clk 0:01:29]}  exd4 {[%clk 0:01:23]} 33. Qxd4 {[%clk 0:01:30]}  Rd8 {[%clk 0:01:18]} 34. Bd3 {[%clk 0:01:26]}  Qg7 {[%clk 0:01:17]} 35. Qe3 {[%clk 0:01:18]}  Qe5 {[%clk 0:01:16]} 36. Bb1 {[%clk 0:01:14]}  Qc5 {[%clk 0:01:15]} 37. Kf2 {[%clk 0:01:13]}  Kg7 {[%clk 0:01:12]} 38. Rd4 {[%clk 0:01:12]}  Re8 {[%clk 0:01:06]} 39. Kf1 {[%clk 0:01:07]}  Rac8 {[%clk 0:00:59]} 40. Qc3 {[%clk 0:01:02]}  Kg8 {[%clk 0:00:58]} 41. Qd3 {[%clk 0:00:55]}  b5 {[%clk 0:00:53]} 42. Ba2 {[%clk 0:00:42]}  bxc4 {[%clk 0:00:53]} 43. Bxc4 {[%clk 0:00:36]}  Bd7 {[%clk 0:00:41]} 44. Kg2 {[%clk 0:00:28]}  Be6 {[%clk 0:00:40]} 45. Bb5 {[%clk 0:00:25]}  Red8 {[%clk 0:00:33]} 46. Bxa4 {[%clk 0:00:24]}  Qc1 {[%clk 0:00:30]} 47. Qd2 {[%clk 0:00:19]}  Qxa3 {[%clk 0:00:29]} 48. Bd1 {[%clk 0:00:15]}  Qc3 {[%clk 0:00:28]} 49. Qf2 {[%clk 0:00:14]}  Rc4 {[%clk 0:00:27]} 50. Rxc4 {[%clk 0:00:12]}  Bxc4 {[%clk 0:00:28]} 51. Nc6 {[%clk 0:00:12]}  Ra8 {[%clk 0:00:26]} 52. Kh3 {[%clk 0:00:10]}  Be6+ {[%clk 0:00:24]} 53. Kh4 {[%clk 0:00:10]}  Qf6# {[%clk 0:00:24]} 0-1


[Site "https://www.chess.com"]

[Event "Titled Tuesday Blitz October 31 Late 2023"]
[White "Tikhonov, Viacheslav"]
[Black "reevecanada"]
[WhiteFideId "44196407"]
[WhiteElo "2522"]
[BlackElo "2636"]
[Result "1-0"]
[Round "11"]
[TimeControl "180+1"]
[Date "2023.10.31"]
[WhiteClock "0:00:14"]
[BlackClock "0:00:30"]
[Board "34"]

1. e4 {[%clk 0:03:00]}  c6 {[%clk 0:03:00]} 2. d4 {[%clk 0:03:00]}  d5 {[%clk 0:03:00]} 3. exd5 {[%clk 0:02:58]}  cxd5 {[%clk 0:03:01]} 4. Bd3 {[%clk 0:02:58]}  Nf6 {[%clk 0:03:02]} 5. h3 {[%clk 0:02:57]}  Nc6 {[%clk 0:03:02]} 6. c3 {[%clk 0:02:58]}  g6 {[%clk 0:03:03]} 7. Nf3 {[%clk 0:02:57]}  Bg7 {[%clk 0:03:03]} 8. O-O {[%clk 0:02:58]}  O-O {[%clk 0:03:04]} 9. Re1 {[%clk 0:02:59]}  b6 {[%clk 0:03:04]} 10. Bf4 {[%clk 0:02:58]}  Bb7 {[%clk 0:03:04]} 11. Nbd2 {[%clk 0:02:57]}  e6 {[%clk 0:03:04]} 12. Qe2 {[%clk 0:02:57]}  Re8 {[%clk 0:03:04]} 13. Ne5 {[%clk 0:02:57]}  Nxe5 {[%clk 0:03:04]} 14. Bxe5 {[%clk 0:02:57]}  Nd7 {[%clk 0:03:04]} 15. Bxg7 {[%clk 0:02:49]}  Kxg7 {[%clk 0:03:05]} 16. Nf3 {[%clk 0:02:50]}  Qc7 {[%clk 0:03:05]} 17. Bb5 {[%clk 0:02:46]}  Bc6 {[%clk 0:03:03]} 18. Ba6 {[%clk 0:02:44]}  f6 {[%clk 0:03:02]} 19. Bb5 {[%clk 0:02:24]}  Bb7 {[%clk 0:03:00]} 20. Bxd7 {[%clk 0:02:24]}  Qxd7 {[%clk 0:03:00]} 21. Qe3 {[%clk 0:02:17]}  a5 {[%clk 0:02:54]} 22. Qf4 {[%clk 0:02:13]}  Re7 {[%clk 0:02:48]} 23. Re3 {[%clk 0:02:10]}  Rae8 {[%clk 0:02:46]} 24. Rae1 {[%clk 0:02:10]}  Qa4 {[%clk 0:02:44]} 25. Qd6 {[%clk 0:01:54]}  Qc6 {[%clk 0:02:37]} 26. Qxc6 {[%clk 0:01:54]}  Bxc6 {[%clk 0:02:38]} 27. g3 {[%clk 0:01:20]}  b5 {[%clk 0:02:35]} 28. a3 {[%clk 0:01:19]}  a4 {[%clk 0:02:32]} 29. R1e2 {[%clk 0:01:15]}  h6 {[%clk 0:02:27]} 30. Ne1 {[%clk 0:01:10]}  e5 {[%clk 0:02:23]} 31. dxe5 {[%clk 0:00:47]}  Rxe5 {[%clk 0:02:21]} 32. Rxe5 {[%clk 0:00:47]}  Rxe5 {[%clk 0:02:20]} 33. Rxe5 {[%clk 0:00:47]}  fxe5 {[%clk 0:02:21]} 34. Nd3 {[%clk 0:00:44]}  Kf6 {[%clk 0:02:21]} 35. Kf1 {[%clk 0:00:42]}  g5 {[%clk 0:02:19]} 36. Ke2 {[%clk 0:00:31]}  h5 {[%clk 0:02:11]} 37. h4 {[%clk 0:00:27]}  gxh4 {[%clk 0:02:10]} 38. gxh4 {[%clk 0:00:28]}  Kf5 {[%clk 0:02:10]} 39. Ke3 {[%clk 0:00:26]}  Bd7 {[%clk 0:01:53]} 40. f3 {[%clk 0:00:24]}  Bc6 {[%clk 0:01:51]} 41. Nb4 {[%clk 0:00:23]}  Bb7 {[%clk 0:01:38]} 42. Nd3 {[%clk 0:00:21]}  Bc8 {[%clk 0:01:38]} 43. Nc5 {[%clk 0:00:21]}  Be6 {[%clk 0:01:35]} 44. Na6 {[%clk 0:00:15]}  Bd7 {[%clk 0:01:29]} 45. Nb4 {[%clk 0:00:14]}  Ke6 {[%clk 0:01:21]} 46. f4 {[%clk 0:00:12]}  exf4+ {[%clk 0:01:19]} 47. Kxf4 {[%clk 0:00:12]}  Kd6 {[%clk 0:01:18]} 48. Nd3 {[%clk 0:00:06]}  Be8 {[%clk 0:01:17]} 49. Kg5 {[%clk 0:00:06]}  d4 {[%clk 0:01:16]} 50. Nf4 {[%clk 0:00:03]}  dxc3 {[%clk 0:01:11]} 51. bxc3 {[%clk 0:00:04]}  Kc5 {[%clk 0:01:11]} 52. Nxh5 {[%clk 0:00:04]}  Kc4 {[%clk 0:01:08]} 53. Ng7 {[%clk 0:00:04]}  Bf7 {[%clk 0:01:05]} 54. Kf6 {[%clk 0:00:04]}  Bg8 {[%clk 0:01:02]} 55. h5 {[%clk 0:00:04]}  Kxc3 {[%clk 0:01:02]} 56. Nf5 {[%clk 0:00:03]}  b4 {[%clk 0:01:02]} 57. Kg7 {[%clk 0:00:02]}  Bb3 {[%clk 0:00:57]} 58. h6 {[%clk 0:00:02]}  bxa3 {[%clk 0:00:56]} 59. h7 {[%clk 0:00:02]}  a2 {[%clk 0:00:54]} 60. h8=Q {[%clk 0:00:03]}  Kb2 {[%clk 0:00:50]} 61. Kg6+ {[%clk 0:00:03]}  Kb1 {[%clk 0:00:49]} 62. Qh1+ {[%clk 0:00:03]}  Kb2 {[%clk 0:00:49]} 63. Qg2+ {[%clk 0:00:02]}  Bc2 {[%clk 0:00:48]} 64. Qb7+ {[%clk 0:00:03]}  Ka3 {[%clk 0:00:47]} 65. Qg7 {[%clk 0:00:02]}  Kb3 {[%clk 0:00:45]} 66. Qa1 {[%clk 0:00:02]}  Bb1 {[%clk 0:00:46]} 67. Kg5 {[%clk 0:00:02]}  Kc2 {[%clk 0:00:46]} 68. Kf4 {[%clk 0:00:02]}  Kd3 {[%clk 0:00:45]} 69. Ne3 {[%clk 0:00:03]}  a3 {[%clk 0:00:43]} 70. Nd5 {[%clk 0:00:04]}  Kc4 {[%clk 0:00:37]} 71. Nc7 {[%clk 0:00:05]}  Kc5 {[%clk 0:00:34]} 72. Ne8 {[%clk 0:00:05]}  Kc6 {[%clk 0:00:31]} 73. Ng7 {[%clk 0:00:06]}  Kd6 {[%clk 0:00:30]} 74. Nh5 {[%clk 0:00:07]}  Kd5 {[%clk 0:00:30]} 75. Ng3 {[%clk 0:00:08]}  Kc4 {[%clk 0:00:30]} 76. Kf3 {[%clk 0:00:08]}  Kb3 {[%clk 0:00:31]} 77. Ke3 {[%clk 0:00:09]}  Kc2 {[%clk 0:00:30]} 78. Kd4 {[%clk 0:00:09]}  Kb3 {[%clk 0:00:30]} 79. Nh5 {[%clk 0:00:10]}  Kc2 {[%clk 0:00:30]} 80. Nf6 {[%clk 0:00:11]}  Kb3 {[%clk 0:00:31]} 81. Nd7 {[%clk 0:00:11]}  Kc2 {[%clk 0:00:32]} 82. Nc5 {[%clk 0:00:11]}  Kc1 {[%clk 0:00:31]} 83. Kc3 {[%clk 0:00:11]}  Kd1 {[%clk 0:00:30]} 84. Kb3 {[%clk 0:00:12]}  Kc1 {[%clk 0:00:30]} 85. Kxa3 {[%clk 0:00:12]}  Kc2 {[%clk 0:00:31]} 86. Kb4 {[%clk 0:00:12]}  Kd2 {[%clk 0:00:31]} 87. Na4 {[%clk 0:00:13]}  Kc2 {[%clk 0:00:30]} 88. Nc3 {[%clk 0:00:14]}  Kd3 {[%clk 0:00:30]} 89. Nxa2 {[%clk 0:00:14]} 1-0


[Site "https://www.chess.com"]

[Event "Titled Tuesday Blitz October 31 Late 2023"]
[White "Rustemov, Alexander"]
[Black "Hajiyev, Kanan"]
[WhiteFideId "4119002"]
[BlackFideId "13404148"]
[WhiteElo "2833"]
[BlackElo "2565"]
[Result "1-0"]
[Round "11"]
[TimeControl "180+1"]
[Date "2023.10.31"]
[WhiteClock "0:00:05"]
[BlackClock "0:00:00"]
[Board "37"]

1. d4 {[%clk 0:02:53]}  c6 {[%clk 0:03:00]} 2. Bf4 {[%clk 0:02:52]}  d5 {[%clk 0:03:01]} 3. e3 {[%clk 0:02:50]}  Nf6 {[%clk 0:03:02]} 4. Nf3 {[%clk 0:02:45]}  Bg4 {[%clk 0:02:59]} 5. c4 {[%clk 0:02:42]}  e6 {[%clk 0:02:59]} 6. Nc3 {[%clk 0:02:36]}  Bd6 {[%clk 0:02:55]} 7. Bxd6 {[%clk 0:02:34]}  Qxd6 {[%clk 0:02:55]} 8. Rc1 {[%clk 0:02:32]}  O-O {[%clk 0:02:55]} 9. Be2 {[%clk 0:02:27]}  Nbd7 {[%clk 0:02:54]} 10. O-O {[%clk 0:02:26]}  Rfe8 {[%clk 0:02:54]} 11. Qb3 {[%clk 0:02:20]}  a5 {[%clk 0:02:51]} 12. Rfd1 {[%clk 0:02:16]}  Ne4 {[%clk 0:02:50]} 13. Qc2 {[%clk 0:02:10]}  Nxc3 {[%clk 0:02:41]} 14. Qxc3 {[%clk 0:02:09]}  Qb4 {[%clk 0:02:39]} 15. a3 {[%clk 0:02:04]}  Qxc3 {[%clk 0:02:39]} 16. Rxc3 {[%clk 0:02:03]}  a4 {[%clk 0:02:38]} 17. Kf1 {[%clk 0:01:58]}  Bxf3 {[%clk 0:02:27]} 18. Bxf3 {[%clk 0:01:57]}  Nb6 {[%clk 0:02:27]} 19. Be2 {[%clk 0:01:56]}  e5 {[%clk 0:02:19]} 20. dxe5 {[%clk 0:01:50]}  Rxe5 {[%clk 0:02:19]} 21. cxd5 {[%clk 0:01:50]}  Rxd5 {[%clk 0:02:17]} 22. Rxd5 {[%clk 0:01:49]}  Nxd5 {[%clk 0:02:18]} 23. Rc4 {[%clk 0:01:49]}  Ne7 {[%clk 0:01:50]} 24. Rd4 {[%clk 0:01:47]}  Kf8 {[%clk 0:01:44]} 25. Rd7 {[%clk 0:01:46]}  b5 {[%clk 0:01:44]} 26. Bf3 {[%clk 0:01:41]}  Rb8 {[%clk 0:01:39]} 27. Rc7 {[%clk 0:01:40]}  b4 {[%clk 0:01:36]} 28. Ra7 {[%clk 0:01:38]}  bxa3 {[%clk 0:01:32]} 29. bxa3 {[%clk 0:01:38]}  Rb1+ {[%clk 0:01:33]} 30. Ke2 {[%clk 0:01:38]}  Rb2+ {[%clk 0:01:33]} 31. Ke1 {[%clk 0:01:36]}  Rb1+ {[%clk 0:01:30]} 32. Kd2 {[%clk 0:01:33]}  Rb2+ {[%clk 0:01:24]} 33. Kc3 {[%clk 0:01:32]}  Rb3+ {[%clk 0:01:24]} 34. Kc4 {[%clk 0:01:32]}  Nd5 {[%clk 0:01:01]} 35. e4 {[%clk 0:01:24]}  Nb6+ {[%clk 0:00:43]} 36. Kc5 {[%clk 0:01:24]}  Ke8 {[%clk 0:00:43]} 37. Ra6 {[%clk 0:00:45]}  Nd7+ {[%clk 0:00:42]} 38. Kd6 {[%clk 0:00:46]}  Rd3+ {[%clk 0:00:39]} 39. Kc7 {[%clk 0:00:43]}  Rxa3 {[%clk 0:00:26]} 40. Ra7 {[%clk 0:00:26]}  Ne5 {[%clk 0:00:20]} 41. Kd6 {[%clk 0:00:21]}  f6 {[%clk 0:00:15]} 42. Be2 {[%clk 0:00:16]}  Ra2 {[%clk 0:00:11]} 43. Ba6 {[%clk 0:00:15]}  Kf8 {[%clk 0:00:02]} 44. f4 {[%clk 0:00:15]}  Nf7+ {[%clk 0:00:02]} 45. Ke6 {[%clk 0:00:15]}  Nd8+ {[%clk 0:00:02]} 46. Kd6 {[%clk 0:00:13]}  Rd2+ {[%clk 0:00:03]} 47. Kc5 {[%clk 0:00:08]}  Ne6+ {[%clk 0:00:03]} 48. Kxc6 {[%clk 0:00:09]}  Nxf4 {[%clk 0:00:03]} 49. Bc4 {[%clk 0:00:08]}  g5 {[%clk 0:00:02]} 50. g3 {[%clk 0:00:08]}  Ne2 {[%clk 0:00:02]} 51. Rf7+ {[%clk 0:00:08]}  Ke8 {[%clk 0:00:02]} 52. Rxf6 {[%clk 0:00:08]}  Nd4+ {[%clk 0:00:03]} 53. Kc5 {[%clk 0:00:07]}  a3 {[%clk 0:00:03]} 54. Ra6 {[%clk 0:00:07]}  a2 {[%clk 0:00:01]} 55. Bxa2 {[%clk 0:00:06]}  Rxh2 {[%clk 0:00:01]} 56. Kxd4 {[%clk 0:00:06]}  Rg2 {[%clk 0:00:02]} 57. Ke5 {[%clk 0:00:05]}  Rxg3 {[%clk 0:00:02]} 58. Ke6 {[%clk 0:00:04]}  Kd8 {[%clk 0:00:02]} 59. Bd5 {[%clk 0:00:04]}  Kc7 {[%clk 0:00:01]} 60. e5 {[%clk 0:00:04]}  g4 {[%clk 0:00:01]} 61. Ra7+ {[%clk 0:00:04]}  Kb6 {[%clk 0:00:01]} 62. Rxh7 {[%clk 0:00:05]}  Rd3 {[%clk 0:00:00]} 63. Rg7 {[%clk 0:00:05]} 1-0


[Site "https://www.chess.com"]